Cogmind - Beta 14 @@@ ROGUE MODE // 2024.12.21 @ 18:14:26 Player: Longball Result: Destroyed by S-27 Virus with Autogun Performance ------------- Evolutions (5) 2500 Regions Visited (14) 2800 Robots Destroyed (160) 800 Value Destroyed (6568) 6568 Prototype IDs (15) 300 Alien Tech Used (0) 0 Bonus (3238) 3238 TOTAL SCORE: 16206 Bonus ------- High Alert Combat Kills 838 Entered Garrisons 400 Used RIF Installer 2000 Cogmind --------- Core Integrity 0/1000 Matter 300/300 Energy 98/100 System Corruption 0% Temperature Cool (0) Movement Core (50) Location -4/Proximity Caves Parts ------- > --- POWER (2) -------- (None) > --- PROPULSION (7) --- (None) > --- UTILITY (4) ------ (None) > --- WEAPON (4) ------- (None) > --- INVENTORY (5) ---- Gyrokinetic Inverter Large Storage Unit Dispersion Rifle Smartbomb Launcher Peak State ------------ > --- POWER ------------ Light Nuclear Core Micro Fission Core > --- PROPULSION ------- Armored Treads Armored Medium Treads Combat Antigrav System Combat Antigrav System > --- UTILITY ---------- Advanced Cryofiber Web Advanced Cooling System Large Storage Unit Improved Signal Interpreter > --- WEAPON ----------- Plasma Rifle Plasma Cannon Enhanced Coil Gun Gauss Cannon > --- INVENTORY -------- Neutrino Core Neutrino Core Advanced Cryofiber Web Large Storage Unit Medium Matter Pod Sensor Array Relay Coupler [NC] Disruptor Cannon Heavy Plasma Cannon Heavy Phase Cannon Gauss Rifle Smartbomb Launcher Datajack Great Maul [Rating: 77] Favorites ----------- Power Light Nuclear Core Engine Light Ion Engine Power Core Light Nuclear Core Propulsion Improved Aluminum Leg Treads Armored Treads Leg Improved Aluminum Leg Wheel Compact Wheel Hover Unit Combat Antigrav System Flight Unit VTOL Module Utility Large Storage Unit Device Advanced Cooling System Storage Large Storage Unit Processor Advanced Terrain Scan Processor Hackware Relay Coupler [Grunt] Protection Light Armor Plating Weapon High-powered Shotgun Energy Gun Medium Laser Energy Cannon Advanced Plasma Cannon Ballistic Gun High-powered Shotgun Ballistic Cannon Improved Light Cannon Launcher Smartbomb Launcher Impact Weapon Great Maul Piercing Weapon Spear Special Melee Weapon Datajack Build | -11 -10 -9 -8 -8 -8 -8 -8 -8 -6 -5 -5 -5 -5 -4 ------- Run | Yrd Mat Mat Mat Gar Mat Sto Gar Rec Fac Fac Upp Upp War Pro Slots Evolved 10 | . . 2 2 . . . . . 4 2 . . . . Power 1 | . . . . . . . . . 1 . . . . . Propulsion 5 | . . 2 . . . . . . 2 1 . . . . Utility 2 | . . . 1 . . . . . . 1 . . . . Weapon 2 | . . . 1 . . . . . 1 . . . . . Parts Attached 132 | 7 . 20 9 14 1 15 15 . 8 26 10 7 . . Power 15 | 1 . 2 1 2 . . 1 . 1 4 1 2 . . Engine 9 | 1 . 2 1 1 . . . . 1 1 1 1 . . Core 6 | . . . . 1 . . 1 . . 3 . 1 . . Reactor . | . . . . . . . . . . . . . . . Propulsion 45 | 2 . 8 2 4 . 11 2 . 2 12 1 1 . . Treads 12 | . . . . 1 . 7 2 . 2 . . . . . Leg 19 | 2 . 8 2 3 . 4 . . . . . . . . Wheel 5 | . . . . . . . . . . 3 1 1 . . Hover 2 | . . . . . . . . . . 2 . . . . Flight 7 | . . . . . . . . . . 7 . . . . Utility 20 | 2 . 4 2 3 . . . . 1 6 2 . . . Device 12 | 1 . 1 1 2 . . . . . 5 2 . . . Storage 3 | 1 . 2 . . . . . . . . . . . . Processor 3 | . . . 1 . . . . . 1 1 . . . . Hackware 1 | . . . . 1 . . . . . . . . . . Protection 1 | . . 1 . . . . . . . . . . . . Artifact . | . . . . . . . . . . . . . . . Weapon 52 | 2 . 6 4 5 1 4 12 . 4 4 6 4 . . Energy Gun 13 | 1 . 3 3 2 . . . . 1 . 2 1 . . Energy Cannon 11 | . . . . 2 . 1 2 . 1 2 2 1 . . Ballistic Gun 12 | 1 . . . 1 1 2 5 . 1 1 . . . . Ballistic Cannon 4 | . . 2 . . . . . . . 1 . 1 . . Launcher 5 | . . 1 1 . . . 1 . . . 1 1 . . Special Weapon . | . . . . . . . . . . . . . . . Impact Weapon 3 | . . . . . . 1 2 . . . . . . . Slashing Weapon . | . . . . . . . . . . . . . . . Piercing Weapon 1 | . . . . . . . . . . . 1 . . . Special Melee Weapon 3 | . . . . . . . 2 . 1 . . . . . Unidentified Prototypes 3 | . . 1 1 . . . . . . 1 . . . . Corrupted Parts 1 | . . . . . . . . . . . . 1 . . System Corruption 10 | . . . . . . . . . . . . 10 . . Parts Lost 42 | . . 2 2 3 1 1 3 . . 17 4 3 . 6 Power 6 | . . . . 1 . . 1 . . 1 1 1 . 1 Propulsion 19 | . . 1 2 . . . . . . 12 2 . . 2 Utility 8 | . . 1 . 1 . . . . . 3 1 2 . . Weapon 9 | . . . . 1 1 1 2 . . 1 . . . 3 Highest Loss Streak 10 | . . 1 2 2 1 1 1 . . 10 3 2 . 6 To Critical Strikes . | . . . . . . . . . . . . . . . Average Slot Usage (%) 88 | . 100 96 99 99 100 99 99 100 97 69 51 54 52 26 Engine 4 | . 14 11 9 7 . . . . 4 2 4 6 5 2 Core 4 | . . . . 1 9 9 8 9 6 5 . 2 5 2 Treads 14 | . . . . 1 . 6 36 36 40 16 . . . . Leg 15 | . 28 43 35 34 36 28 . . . . . . . . Wheel 1 | . . . . . . . . . . 1 12 8 11 5 Device 7 | . 14 4 8 8 9 9 9 9 6 8 8 7 . . Storage 7 | . 14 11 9 9 9 9 9 9 6 4 . . . . Processor 2 | . . . 8 8 . . . . 2 4 5 5 5 2 Hackware 3 | . . . . . 9 9 9 9 3 . . . . . Energy Gun 6 | . 14 10 17 12 9 4 . . 3 4 4 4 5 2 Energy Cannon 5 | . . . . 4 9 13 7 . 5 3 10 5 5 2 Ballistic Gun 8 | . 14 . . 3 9 8 17 27 16 5 . . . . Ballistic Cannon 2 | . . 10 9 6 . . . . . 1 . 3 5 2 Peak Build Rating 77 | 9 10 18 27 44 44 46 50 39 54 77 38 44 38 38 Average Rating 34 | 6 9 15 24 29 43 43 41 39 50 50 29 39 38 20 On Entrance 30 | . 9 10 18 25 44 44 44 39 39 54 17 37 38 38 Naked Turns 98 | . . . . . . . . . . 25 . . . 73 Heaviest Build 60 | 13 13 35 37 44 45 45 45 36 53 60 41 59 56 56 Greatest Support 127 | 20 20 52 52 51 51 87 87 87 127 127 36 26 26 26 Greatest Overweight (x) 8 | . . . . . . . . . . 8 2 2 2 2 Average Overweight (x) . | . . . . . . . . . . . . 1 2 . Largest Inventory Capacity 15 | 8 8 15 15 15 15 15 15 15 15 15 5 5 5 5 Average Capacity 12 | 6 8 11 15 15 15 15 15 15 15 13 5 5 5 5 Most Carried 15 | 7 8 15 15 15 15 15 15 14 15 15 5 5 4 5 Average Carried 11 | 4 7 10 14 14 14 14 14 14 13 12 4 4 4 4 Final Capacity 15 | 8 8 15 15 15 15 15 15 15 15 5 5 5 5 5 Final Carried 15 | 7 8 15 13 15 14 15 14 14 15 4 5 4 4 5 Class Distribution -------------------- 33% | Scavenger-Gunner 26% | Mutant 24% | Gunner 5% | Skirmisher 4% | Scavenger-Skirmisher 3% | Scavenger-Mutant Dominant Class ---------------- Mutant | -10/Materials Mutant | -9/Materials Skirmisher | -8/Materials Scavenger-Gunner | -8/Garrison Scavenger-Gunner | -8/Materials Scavenger-Gunner | -8/Storage Gunner | -8/Garrison Gunner | -8/Recycling Scavenger-Gunner | -6/Factory Scavenger-Gunner | -5/Factory Gunner | -5/Upper Caves Scavenger-Gunner | -5/Upper Caves Gunner | -5/Warlord Mutant | -4/Proximity Caves Resources | -11 -10 -9 -8 -8 -8 -8 -8 -8 -6 -5 -5 -5 -5 -4 ----------- Run | Yrd Mat Mat Mat Gar Mat Sto Gar Rec Fac Fac Upp Upp War Pro Matter Collected 3238 | 272 91 498 47 373 30 397 539 10 190 451 132 208 . . Remotely 283 | . . . . . . . . . . 10 132 141 . . Salvage Created 6206 | 62 196 762 67 708 30 1541 934 . 233 1073 316 269 . 15 Parts 328 | 9 12 62 5 38 3 87 61 . 7 33 7 2 . 2 Haulers Intercepted 1 | . . . . . . 1 . . . . . . . . Recyclers Shooed 1 | . . . . . . . . . . 1 . . . . Parts Field Recycled . | . . . . . . . . . . . . . . . Retrieved Matter . | . . . . . . . . . . . . . . . Parts Self-Destructed 3 | . . . . . . . . . . . . 1 . 2 Prevented 5 | . . . . . . . . . . . . 5 . . Kills | -11 -10 -9 -8 -8 -8 -8 -8 -8 -6 -5 -5 -5 -5 -4 ------- Run | Yrd Mat Mat Mat Gar Mat Sto Gar Rec Fac Fac Upp Upp War Pro Combat Hostiles Destroyed 127 | . 8 20 4 15 2 26 26 . 3 13 6 3 . 1 Melee 1 | . . . . . . . . . . . . 1 . . Guns 51 | . 5 4 . 5 . 10 17 . 2 8 . . . . Cannons 48 | . . 10 1 6 2 16 6 . . 3 2 1 . 1 AOE 23 | . 3 6 3 4 . . 3 . . . 4 . . . Classes Destroyed 17 | 1 4 4 1 . . 3 2 . . . 2 . . . Worker 7 | . 2 1 . . . . . . . 4 . . . . Builder 6 | . . 1 . . . 4 . . . 1 . . . . Tunneler 3 | 3 . . . . . . . . . . . . . . Hauler 1 | . . . . . . 1 . . . . . . . . Recycler 8 | . . 1 . . . 3 . . . 4 . . . . Operator 1 | . . . . . . 1 . . . . . . . . Watcher 7 | . 2 2 . . . 1 . . 2 . . . . . Swarmer 40 | . 5 6 3 . 2 6 8 . . 9 . . . 1 Grunt 38 | . 3 6 . 3 . 9 6 . 2 1 5 3 . . Brawler 1 | . . . . . . . 1 . . . . . . . Duelist 6 | . . 1 . 2 . 2 1 . . . . . . . Protector 1 | . . . . . . 1 . . . . . . . . Sentry 28 | . . 7 . 8 . 7 4 . 1 1 . . . . Hunter 5 | . . . 1 2 . 1 1 . . . . . . . Programmer 7 | . . . . . . . 5 . . 2 . . . . Decomposer 4 | . . . . . . . . . . . 2 2 . . Packrat 1 | . . . . . . . . . . . . 1 . . Samaritan 2 | . . . . . . . . . . . 2 . . . Mutant 1 | . . . . . . . . . . . 1 . . . Best Kill Streak 11 | 2 7 11 3 4 2 9 5 . 2 7 5 2 . 1 Combat Bots Only 8 | . 5 8 3 4 2 6 5 . 2 5 5 2 . 1 Max Kills in Single Turn 7 | 2 5 7 1 2 1 3 2 . 1 2 4 1 . 1 Gunslinging 1 | . . . . . . . 1 . . 1 . . . . Exploded 4 | . 3 4 1 1 . . 2 . . . 4 . . . Melee 1 | . . . . . . . . . . . . 1 . . Uniques/NPCs Destroyed . | . . . . . . . . . . . . . . . Combat | -11 -10 -9 -8 -8 -8 -8 -8 -8 -6 -5 -5 -5 -5 -4 -------- Run | Yrd Mat Mat Mat Gar Mat Sto Gar Rec Fac Fac Upp Upp War Pro Hostile Shots Fired 705 | . 50 79 19 62 17 78 112 . 48 146 22 32 . 40 Missed 202 | . 17 20 7 11 7 20 32 . 14 43 8 14 . 9 Damage Taken 7971 | . 381 677 160 791 103 841 1104 . 490 1928 316 431 50 699 Core 1717 | . 112 131 25 121 22 102 130 . 62 485 26 107 . 394 Absorbed by Shields 105 | . . 100 . . . . . . . . 5 . . . Regen/Repaired (Parts) 122 | . . . . . . 122 . . . . . . . . Core Remaining (%) 68 | 100 55 67 . . . . . 27 92 . . . . . Volleys Fired 325 | 4 29 44 11 36 6 58 57 . 11 40 20 6 . 3 Largest 4 | 2 2 2 3 3 3 3 3 . 4 4 3 3 . 3 Hottest 233 | 70 70 104 139 188 191 194 204 . 205 233 209 222 . 222 Shots Fired 829 | 8 58 84 32 102 18 169 146 . 38 116 39 11 . 8 Gun 471 | 8 58 40 19 58 12 82 79 . 27 73 8 4 . 3 Cannon 343 | . . 41 11 44 6 87 63 . 11 43 26 6 . 5 Launcher 15 | . . 3 2 . . . 4 . . . 5 1 . . Special . | . . . . . . . . . . . . . . . Kinetic 355 | 4 29 41 11 42 6 58 79 . 25 53 . 5 . 2 Thermal 374 | 4 29 30 11 38 6 87 62 . 13 61 22 5 . 6 Explosive 15 | . . 3 2 . . . 4 . . . 5 1 . . Electromagnetic 85 | . . 10 8 22 6 24 1 . . 2 12 . . . Robot Hit Streak 26 | 2 6 7 4 15 1 25 26 . 6 10 11 11 . 3 Robot Miss Streak 7 | 1 7 7 5 2 3 4 5 . 2 6 3 4 . 1 Penetration Max 1 | . . . . . . 1 . . . . . . . . Secondary Targets 5 | . 1 . . . . . 3 . . 1 . . . . Max Gunslinging Chain 1 | . 1 . . . . . 1 . . 1 . . . . Shots Hit Robots 472 | 5 25 48 13 61 6 103 78 . 29 67 19 12 . 6 Core Hits 248 | 3 14 35 6 31 1 49 47 . 10 27 18 5 . 2 Critical Kills 8 | . . . . . . . 3 . 2 3 . . . . Critical Parts Destroyed . | . . . . . . . . . . . . . . . Critical Strikes 13 | . . 1 . 1 . . 3 . 2 5 . . . 1 Burn 3 | . . 1 . 1 . . . . . 1 . . . . Meltdown 4 | . . . . . . . 1 . 2 1 . . . . Destroy 4 | . . . . . . . 2 . . 2 . . . . Blast 2 | . . . . . . . . . . 1 . . . 1 Melee Attacks 22 | . . . . . . 1 8 . 6 . . 7 . . Impact 6 | . . . . . . 1 5 . . . . . . . Slashing . | . . . . . . . . . . . . . . . Piercing 7 | . . . . . . . . . . . . 7 . . Sneak Attacks 7 | . . . . . . . 1 . 2 . . 4 . . Combat Hostiles 3 | . . . . . . . 1 . 2 . . . . . Follow-up Attacks . | . . . . . . . . . . . . . . . Damage Inflicted 14243 | 75 913 1255 529 1415 155 2833 2297 . 557 2050 1541 458 . 165 Guns 4914 | 75 366 323 129 572 54 961 792 . 350 1131 35 64 . 62 Cannons 5700 | . . 538 66 515 101 1854 983 . 207 800 463 70 . 103 Explosions 3282 | . 547 394 334 328 . . 522 . . 114 1043 . . . Melee 324 | . . . . . . . . . . . . 324 . . Ramming 23 | . . . . . . 18 . . . 5 . . . . Kinetic 4192 | 50 203 538 66 432 40 721 792 . 350 891 . 39 . 70 Thermal 6614 | 25 710 248 292 564 101 1854 979 . 207 1124 320 95 . 95 Explosive 2124 | . . 346 104 109 . . 522 . . . 1043 . . . Electromagnetic 966 | . . 123 67 310 14 240 4 . . 30 178 . . . Impact . | . . . . . . . . . . . . . . . Slashing . | . . . . . . . . . . . . . . . Piercing 324 | . . . . . . . . . . . . 324 . . Highest Corruption 39 | . 2 . . . . . 2 2 . 29 29 39 39 . Average Corruption 13 | . 2 . . . . . 2 2 . 9 29 34 39 . Corruption Purged . | . . . . . . . . . . . . . . . Corruption Blocked . | . . . . . . . . . . . . . . . Effects 97 | . 5 . . . . . 16 2 . 14 29 29 2 . Message Errors 18 | . 2 . . . . . 5 . . 2 5 3 1 . Matter Fused 19 | . 1 . . . . . 4 1 . 2 5 6 . . Heat Flow Errors 14 | . 1 . . . . . 2 . . 4 3 4 . . Energy Discharges 15 | . 1 . . . . . 4 1 . 1 6 2 . . Parts Rejected 3 | . . . . . . . . . . 1 1 1 . . Parts Fused 2 | . . . . . . . . . . 1 . 1 . . Data Loss (minor) 6 | . . . . . . . . . . 1 1 4 . . Data Loss (major) 3 | . . . . . . . . . . 1 2 . . . Misfires 3 | . . . . . . . . . . 1 2 . . . Alerts 3 | . . . . . . . . . . . 1 1 1 . Misdirections 6 | . . . . . . . . . . . . 6 . . Weapon Failures 5 | . . . . . . . 1 . . . 3 1 . . Overload Shots . | . . . . . . . . . . . . . . . Overflow Damage 634 | . 33 10 130 . 15 72 81 . . 35 121 137 . . Projectiles 229 | . . 10 . . 15 72 37 . . 35 60 . . . Explosions 268 | . 33 . 130 . . . 44 . . . 61 . . . Melee 137 | . . . . . . . . . . . . 137 . . Knockbacks 14 | . . 5 . 2 . . . . . 7 . . . . Impact . | . . . . . . . . . . . . . . . Kinetic 13 | . . 5 . 2 . . . . . 6 . . . . Secondary 1 | . . . . . . . . . . 1 . . . . Self-Inflicted Damage 170 | . 90 . . 48 . . 32 . . . . . . . Shots 4 | . 2 . . 1 . . 1 . . . . . . . Rammed . | . . . . . . . . . . . . . . . Targets Rammed 2 | . . . . . . 1 . . . 1 . . . . Kicked 1 | . . . . . . 1 . . . . . . . . Crushed 1 | . . . . . . . . . . 1 . . . . Highest Temperature 426 | 27 195 156 290 376 72 144 174 . 90 152 388 323 369 426 Average Temperature 78 | 12 48 45 96 109 28 45 57 . 50 53 133 142 190 224 Received Heat Transfer 1757 | . 60 176 . 252 18 279 252 . 129 279 60 144 . 108 Effects 5 | . . . . 2 . . . . . . . 1 1 1 Energy Bleed 3 | . . . . . . . . . . . . 1 1 1 Interference 2 | . . . . 2 . . . . . . . . . . Siege Activations . | . . . . . . . . . . . . . . . Robots Corrupted . | . . . . . . . . . . . . . . . Combat Hostiles . | . . . . . . . . . . . . . . . Parts Fried 4 | . . . . 2 . . . . . . 2 . . . Impact Corruptions . | . . . . . . . . . . . . . . . Robots Melted 5 | . . . . . . . 1 . 2 2 . . . . Combat Hostiles 3 | . . . . . . . . . 1 2 . . . . Parts Melted 25 | . . 2 . 3 . 5 2 . 5 8 . . . . Heat Transferred 10796 | 74 881 679 335 1088 150 2795 1398 . 400 2150 524 161 . 161 Parts Sabotaged . | . . . . . . . . . . . . . . . Parts Stolen . | . . . . . . . . . . . . . . . Parts Stripped . | . . . . . . . . . . . . . . . Power Chain Reactions 4 | . . 1 . 3 . . . . . . . . . . Alert | -11 -10 -9 -8 -8 -8 -8 -8 -8 -6 -5 -5 -5 -5 -4 ------- Run | Yrd Mat Mat Mat Gar Mat Sto Gar Rec Fac Fac Upp Upp War Pro Peak Influence 1532 | 15 362 545 410 746 424 722 1532 699 303 233 . . . . Initial 689 | . 9 79 225 266 363 178 469 689 231 16 . . . . Average 438 | 4 100 354 339 544 402 410 1078 687 133 127 . . . . Maximum Alert Level 4 | . 1 2 2 3 2 3 4 2 1 1 . . . . Low Security (%) 31 | 100 91 15 . . . 10 . . 64 84 . . . . Level 1 25 | . 8 42 95 21 30 33 . . 35 15 . . . . Level 2 27 | . . 41 4 73 69 51 21 100 . . . . . . Level 3 5 | . . . . 4 . 3 22 . . . . . . . Level 4 10 | . . . . . . . 56 . . . . . . . Level 5 . | . . . . . . . . . . . . . . . High Security . | . . . . . . . . . . . . . . . Max Security . | . . . . . . . . . . . . . . . Squads Dispatched 12 | . 1 1 2 . . 4 . . 1 2 . . . 1 Investigation 1 | . . . . . . 1 . . . . . . . . Extermination 3 | . . . . . . . . . 1 2 . . . . Reinforcement 6 | . 1 1 2 . . 2 . . . . . . . . Assault 2 | . . . . . . 1 . . . . . . . 1 Garrison . | . . . . . . . . . . . . . . . Intercept . | . . . . . . . . . . . . . . . Searches Triggered . | . . . . . . . . . . . . . . . Construction Impeded . | . . . . . . . . . . . . . . . Haulers Reinforced . | . . . . . . . . . . . . . . . Active Scanning Responses . | . . . . . . . . . . . . . . . Cargo Convoy Interrupts . | . . . . . . . . . . . . . . . Stealth | -11 -10 -9 -8 -8 -8 -8 -8 -8 -6 -5 -5 -5 -5 -4 --------- Run | Yrd Mat Mat Mat Gar Mat Sto Gar Rec Fac Fac Upp Upp War Pro Distress Signals 7 | . 1 2 1 . . 3 . . . . . . . . Communications Jammed . | . . . . . . . . . . . . . . . Distress Signals . | . . . . . . . . . . . . . . . Times Spotted 206 | . 15 30 10 14 4 34 27 . 11 25 6 11 . 19 Peak Tracking Total 9 | . 5 6 6 4 2 7 5 . 3 6 5 5 . 9 Tactical Retreats 16 | . . 2 . 1 . 1 . . 2 5 . 2 . 3 Traps | -11 -10 -9 -8 -8 -8 -8 -8 -8 -6 -5 -5 -5 -5 -4 ------- Run | Yrd Mat Mat Mat Gar Mat Sto Gar Rec Fac Fac Upp Upp War Pro Traps Triggered 9 | . 1 1 . 3 . . 2 . . 1 . . 1 . Indirectly . | . . . . . . . . . . . . . . . Trap Hack Attempts 48 | . . . . . . . 48 . . . . . . . Triggered . | . . . . . . . . . . . . . . . Disarmed 1 | . . . . . . . 1 . . . . . . . Reprogrammed 5 | . . . . . . . 5 . . . . . . . Reused . | . . . . . . . . . . . . . . . Traps Extracted . | . . . . . . . . . . . . . . . Installed . | . . . . . . . . . . . . . . . Triggered 3 | . . . . . . 1 . . . . . 2 . . Machines | -11 -10 -9 -8 -8 -8 -8 -8 -8 -6 -5 -5 -5 -5 -4 ---------- Run | Yrd Mat Mat Mat Gar Mat Sto Gar Rec Fac Fac Upp Upp War Pro Machines Disabled 26 | . 4 3 2 4 . 2 5 . . 5 1 . . . Max in Single Turn 4 | . 4 1 2 2 . 1 2 . . 1 1 . . . Garrison Access 1 | . . . . . . . . . 1 . . . . . Garrison Relay 6 | . . . . 1 . . 5 . . . . . . . Phase Generator 1 | . . . . 1 . . . . . . . . . . Machines Repaired . | . . . . . . . . . . . . . . . Machines Dismantled . | . . . . . . . . . . . . . . . Machines Sabotaged . | . . . . . . . . . . . . . . . Overloaded Fab Kills . | . . . . . . . . . . . . . . . Hacking | -11 -10 -9 -8 -8 -8 -8 -8 -8 -6 -5 -5 -5 -5 -4 --------- Run | Yrd Mat Mat Mat Gar Mat Sto Gar Rec Fac Fac Upp Upp War Pro Machines Accessed 32 | . 3 5 4 2 1 5 2 3 4 3 . . . . Terminals 25 | . 3 5 3 2 1 3 2 3 1 2 . . . . Fabricators 3 | . . . . . . . . . 2 1 . . . . Repair Stations 1 | . . . . . . 1 . . . . . . . . Recycling Units . | . . . . . . . . . . . . . . . Scanalyzers . | . . . . . . . . . . . . . . . Garrison Access 3 | . . . 1 . . 1 . . 1 . . . . . Total Hacks 77 | . 10 17 8 3 1 9 4 10 9 6 . . . . Successful 41 | . 6 5 5 . . 8 1 7 6 3 . . . . Failed 36 | . 4 12 3 3 1 1 3 3 3 3 . . . . Catastrophic 3 | . . 1 . 1 1 . . . . . . . . . Database Lockouts . | . . . . . . . . . . . . . . . Manual 21 | . 4 5 3 . 1 . . 5 1 2 . . . . Terminals 63 | . 10 17 7 3 1 4 4 10 3 4 . . . . Fabricators 7 | . . . . . . . . . 5 2 . . . . Repair Stations 4 | . . . . . . 4 . . . . . . . . Recycling Units . | . . . . . . . . . . . . . . . Scanalyzers . | . . . . . . . . . . . . . . . Garrison Access 3 | . . . 1 . . 1 . . 1 . . . . . Terminal Hacks 22 | . 4 3 2 . . 3 1 5 2 2 . . . . Record 1 | . . . . . . . . . . 1 . . . . Robot Analysis 2 | . 1 . . . . 1 . . . . . . . . Prototype ID Bank 6 | . . 2 . . . 1 . 1 1 1 . . . . Open Door 1 | . . . . . . 1 . . . . . . . . Emergency Access Points 2 | . . 1 . . . . 1 . . . . . . . Terminal Index 1 | . . . . . . . . 1 . . . . . . Repair Station Index 1 | . . . . . . . . 1 . . . . . . Alert Level 2 | . . . 1 . . . . 1 . . . . . . Unreport Threat 1 | . . . . . . . . 1 . . . . . . Locate Traps 1 | . 1 . . . . . . . . . . . . . Maintenance Status 1 | . . . . . . . . . 1 . . . . . Hauler Manifests 1 | . . . 1 . . . . . . . . . . . Registered Components 1 | . 1 . . . . . . . . . . . . . Zone Layout 1 | . 1 . . . . . . . . . . . . . Fabricator Hacks 3 | . . . . . . . . . 2 1 . . . . Network Status 1 | . . . . . . . . . 1 . . . . . Build 2 | . . . . . . . . . 1 1 . . . . Repair Station Hacks 4 | . . . . . . 4 . . . . . . . . Scan Component 2 | . . . . . . 2 . . . . . . . . Repair 2 | . . . . . . 2 . . . . . . . . Recycling Unit Hacks . | . . . . . . . . . . . . . . . Scanalyzer . | . . . . . . . . . . . . . . . Garrison Access Hacks 3 | . . . 1 . . 1 . . 1 . . . . . Unlock Access 2 | . . . 1 . . 1 . . . . . . . . Seal Access 1 | . . . . . . . . . 1 . . . . . Unauthorized Hacks 9 | . 2 2 2 . . . . 2 1 . . . . . Terminals 9 | . 2 2 2 . . . . 2 1 . . . . . Track 1 | . 1 . . . . . . . . . . . . . Botnet 8 | . 1 2 2 . . . . 2 1 . . . . . Fabricators . | . . . . . . . . . . . . . . . Repair Stations . | . . . . . . . . . . . . . . . Recycling Units . | . . . . . . . . . . . . . . . Scanalyzers . | . . . . . . . . . . . . . . . Garrison Access . | . . . . . . . . . . . . . . . Data Cores Recovered . | . . . . . . . . . . . . . . . Used . | . . . . . . . . . . . . . . . Hacking Detections 23 | . 2 5 3 2 1 2 2 3 . 3 . . . . Full Trace Events . | . . . . . . . . . . . . . . . Feedback Events . | . . . . . . . . . . . . . . . Feedback Blocked . | . . . . . . . . . . . . . . . Robot Schematics Acquired . | . . . . . . . . . . . . . . . Robots Built . | . . . . . . . . . . . . . . . Authchips . | . . . . . . . . . . . . . . . Time . | . . . . . . . . . . . . . . . Total Robot Build Rating . | . . . . . . . . . . . . . . . Part Schematics Acquired . | . . . . . . . . . . . . . . . Parts Built 4 | . . . . . . . . . 2 2 . . . . Authchips . | . . . . . . . . . . . . . . . Time 100 | . . . . . . . . . 58 42 . . . . Total Part Build Rating 30 | . . . . . . . . . 14 16 . . . . Parts Repaired 2 | . . . . . . 2 . . . . . . . . Time 58 | . . . . . . 58 . . . . . . . . Parts Recycled . | . . . . . . . . . . . . . . . Recycled Matter . | . . . . . . . . . . . . . . . Retrieved Matter . | . . . . . . . . . . . . . . . Retrieved Components . | . . . . . . . . . . . . . . . Parts Scanalyzed . | . . . . . . . . . . . . . . . Part Schematics Acquired . | . . . . . . . . . . . . . . . Parts Damaged . | . . . . . . . . . . . . . . . Bothacking | -11 -10 -9 -8 -8 -8 -8 -8 -8 -6 -5 -5 -5 -5 -4 ------------ Run | Yrd Mat Mat Mat Gar Mat Sto Gar Rec Fac Fac Upp Upp War Pro Used RIF Installer 4 | . . . . 2 . . 2 . . . . . . . Command Fork 1 | . . . . 1 . . . . . . . . . . Threat Obfuscator 1 | . . . . . . . 1 . . . . . . . Watcher Feeds 1 | . . . . . . . 1 . . . . . . . Robots Hacked 2 | . . . . . . . 1 . 1 . . . . . Non-combat . | . . . . . . . . . . . . . . . Combat 2 | . . . . . . . 1 . 1 . . . . . Robot Hacks Applied 3 | . . . . . . . 1 . 2 . . . . . overwrite_iff 2 | . . . . . . . 1 . 1 . . . . . formatsys_high 1 | . . . . . . . . . 1 . . . . . Relay Couplers Released 28 | . . . . 5 . . 23 . . . . . . . Machine Destruction 28 | . . . . 5 . . 23 . . . . . . . Attached 1 | . . . . 1 . . . . . . . . . . Fabnet Peak Effective % . | . . . . . . . . . . . . . . . Robots Rewired . | . . . . . . . . . . . . . . . Allies Hacked . | . . . . . . . . . . . . . . . Hacks Repelled . | . . . . . . . . . . . . . . . Allies | -11 -10 -9 -8 -8 -8 -8 -8 -8 -6 -5 -5 -5 -5 -4 -------- Run | Yrd Mat Mat Mat Gar Mat Sto Gar Rec Fac Fac Upp Upp War Pro Total Allies 3 | . . . . . . . 2 . 1 . . . . . Largest Group 2 | . . . . . . . 2 . 1 . . . . . Highest-Rated Group 32 | . . . . . . . 32 . 29 . . . . . Highest-Rated Ally 29 | . . . . . . . 16 . 29 . . . . . Total Orders . | . . . . . . . . . . . . . . . Ally Attacks 4 | . . . . . . . . . 4 . . . . . Total Damage 55 | . . . . . . . . . 55 . . . . . Kills . | . . . . . . . . . . . . . . . Allies Corrupted . | . . . . . . . . . . . . . . . Allies Melted . | . . . . . . . . . . . . . . . Intel | -11 -10 -9 -8 -8 -8 -8 -8 -8 -6 -5 -5 -5 -5 -4 ------- Run | Yrd Mat Mat Mat Gar Mat Sto Gar Rec Fac Fac Upp Upp War Pro Robot Analysis Total 2 | . 1 . . . . 1 . . . . . . . . Derelict Logs Recovered 2 | . . . . . . . . . . . 1 1 . . Drone Launches . | . . . . . . . . . . . . . . . Drone Recoveries . | . . . . . . . . . . . . . . . Exploration | -11 -10 -9 -8 -8 -8 -8 -8 -8 -6 -5 -5 -5 -5 -4 ------------- Run | Yrd Mat Mat Mat Gar Mat Sto Gar Rec Fac Fac Upp Upp War Pro Turns Passed 8581 | 110 571 1052 336 720 79 987 1359 183 1116 828 547 430 108 155 Spaces Moved 5001 | 58 369 631 223 416 48 469 649 104 568 417 459 298 91 201 Core 205 | 2 . . . . . . . . . 62 . . . 141 Treads 1606 | . . . . . . 78 649 104 568 207 . . . . Legs 2134 | 56 369 631 223 416 48 391 . . . . . . . . Wheels 977 | . . . . . . . . . . 69 459 298 91 60 Hover 30 | . . . . . . . . . . 30 . . . . Flight 49 | . . . . . . . . . . 49 . . . . Fastest Speed 50 | 50 120 120 120 120 120 120 167 167 165 50 86 105 120 50 Average Speed 130 | 117 120 120 120 120 120 127 167 167 165 133 99 121 120 70 Slowest Speed 675 | 120 120 120 120 120 120 167 167 167 165 675 130 130 120 120 Overloaded Moves . | . . . . . . . . . . . . . . . Propulsion Burnouts . | . . . . . . . . . . . . . . . Robots Hopped . | . . . . . . . . . . . . . . . Cave-ins Triggered . | . . . . . . . . . . . . . . . Exploration Rate (%) 37 | 6 61 61 26 51 5 67 72 35 13 10 69 45 17 28 Regions Visited 14 Branch Regions 6 Pre-discovered Areas 1 | . . . . . . . . . . . . 1 . . Known Exits Taken 3 | . . . 1 . . 1 . . 1 . . . . . Unknown Exits Taken 9 | 1 1 1 . . 1 . . 1 . 1 1 1 1 . Scrap Searched 5 | . . . . . . . . . . . 2 . . 3 Spaces Dug 1 | . . . . . . 1 . . . . . . . . Terrain Destroyed 347 | . 56 16 11 62 3 14 50 . . 39 67 27 . 2 Melee . | . . . . . . . . . . . . . . . Projectile 53 | . . 2 . . 3 14 3 . . 20 5 4 . 2 AOE 294 | . 56 14 11 62 . . 47 . . 19 62 23 . . Terrain Rammed . | . . . . . . . . . . . . . . . Walls Destroyed . | . . . . . . . . . . . . . . . Machines Disabled . | . . . . . . . . . . . . . . . Actions | -11 -10 -9 -8 -8 -8 -8 -8 -8 -6 -5 -5 -5 -5 -4 --------- Run | Yrd Mat Mat Mat Gar Mat Sto Gar Rec Fac Fac Upp Upp War Pro Total 6378 | 88 440 848 268 564 56 726 807 113 719 596 514 342 90 207 Wait 730 | 13 38 121 16 71 2 173 23 10 118 99 22 22 . 2 Move 4985 | 57 368 630 222 414 47 468 647 103 567 416 458 297 90 201 Hop . | . . . . . . . . . . . . . . . Pick Up 54 | 7 3 14 5 9 . 4 3 . 5 2 1 . . 1 Fast Attach 58 | 7 . 6 2 4 . 4 2 . 3 18 7 5 . . Attach 31 | . . 3 3 3 1 6 3 . 2 6 2 2 . . Detach 15 | . . 1 . 2 . 2 1 . 1 5 2 1 . . Swap 43 | . . 11 4 7 . 5 10 . 3 2 1 . . . Drop 59 | . 2 18 5 13 . 4 5 . 2 7 1 2 . . Fire 325 | 4 29 44 11 36 6 58 57 . 11 40 20 6 . 3 Melee 22 | . . . . . . 1 8 . 6 . . 7 . . Ram . | . . . . . . . . . . . . . . . Kick 1 | . . . . . . 1 . . . . . . . . Crush 1 | . . . . . . . . . . 1 . . . . Escape Stasis 5 | . . . . 5 . . . . . . . . . . Rewire 1 | . . . . . . . . . 1 . . . . . Trap 48 | . . . . . . . 48 . . . . . . . Miscellaneous . | . . . . . . . . . . . . . . . Route ------- -11/Scrapyard -10/Materials (discovered 4 exits: *Mat x3 / [Sub]) -9/Materials (discovered 2 exits: *Mat x2) -8/Materials (discovered 2 exits: *Sto / Gar) -8/Garrison -8/Materials -8/Storage -8/Garrison (discovered 2 exits: *Rec x2) -8/Recycling -6/Factory -5/Factory (discovered 2 exits: [*Fac] / [*Upp]) -5/Upper Caves -5/Upper Caves -5/Warlord -4/Proximity Caves History --------- Turn | Location | Event 16 | -11/Scrapyard | Discovered new exit (range 16) 111 | -11/Scrapyard | Entered Materials 295 | -10/Materials | Discovered new exit (range 4) 302 | -10/Materials | Build established: Mutant 501 | -10/Materials | Discovered new exit (range 16) 525 | -10/Materials | Discovered new exit (range 16) 674 | -10/Materials | Discovered new exit (range 7) 682 | -10/Materials | Entered another Materials area 682 | -9/Materials | Evolved 2 slots: Propulsion x2 871 | -9/Materials | Destroyed 8 combat bots 962 | -9/Materials | Discovered new exit (range 14) 1673 | -9/Materials | Discovered new exit (range 16) 1734 | -9/Materials | Entered another Materials area 1734 | -8/Materials | Evolved 2 slots: Utility x1, Weapon x1 1741 | -8/Materials | Discovered new exit (range 13) 2030 | -8/Materials | Build established: Skirmisher 2069 | -8/Materials | Identified exit to Garrison 2070 | -8/Materials | Entered Garrison 2085 | -8/Garrison | Installed Relay Interface Framework 2156 | -8/Garrison | Triggered checkpoint 2276 | -8/Garrison | Expanded RIF knowledge: Command Fork 2317 | -8/Garrison | Phase Generator disabled 2450 | -8/Garrison | Triggered checkpoint 2454 | -8/Garrison | Triggered checkpoint 2556 | -8/Garrison | Discovered new exit (range 10) 2751 | -8/Garrison | Build established: Scavenger-Gunner 2756 | -8/Garrison | Garrison Relay disabled 2790 | -8/Garrison | Entered Materials 2790 | -8/Materials | Discovered new exit (range 8) 2869 | -8/Materials | Entered Storage 3062 | -8/Storage | Repaired Imp. Aluminum Leg 3089 | -8/Storage | Repaired Aluminum Leg 3669 | -8/Storage | First assault squad dispatched 3854 | -8/Storage | Identified exit to Garrison 3856 | -8/Storage | Entered Garrison 3961 | -8/Garrison | Build established: Gunner 4034 | -8/Garrison | Triggered checkpoint 4042 | -8/Garrison | Core integrity fell below 50% 4140 | -8/Garrison | Garrison Relay disabled 4443 | -8/Garrison | Triggered checkpoint 4446 | -8/Garrison | Garrison Relay disabled 4635 | -8/Garrison | Discovered new exit (range 10) 4638 | -8/Garrison | Triggered checkpoint 4816 | -8/Garrison | Triggered checkpoint 4886 | -8/Garrison | Triggered checkpoint 4987 | -8/Garrison | Discovered new exit (range 3) 5024 | -8/Garrison | Expanded RIF knowledge: Watcher Feeds 5122 | -8/Garrison | Expanded RIF knowledge: Threat Obfuscation 5215 | -8/Garrison | Entered Recycling 5374 | -8/Recycling | Discovered new exit (range 5) 5398 | -8/Recycling | Entered Factory 5398 | -6/Factory | Evolved 4 slots: Power x1, Propulsion x2, Weapon x1 5697 | -6/Factory | Build established: Scavenger-Gunner 6325 | -6/Factory | Fabricated Adv. Cryofiber Web (x2) 6494 | -6/Factory | Discovered new exit (range 13) 6512 | -6/Factory | Identified exit to Factory 6514 | -6/Factory | Entered another Factory area 6514 | -5/Factory | Evolved 2 slots: Propulsion x1, Utility x1 6986 | -5/Factory | Fabricated Cmb. Antigrav System (x2) 7171 | -5/Factory | System corruption reached 10% 7208 | -5/Factory | Released all parts (3) 7239 | -5/Factory | Lost 10 parts (7n3u) 7335 | -5/Factory | Discovered new exit (range 13) 7335 | -5/Factory | Discovered new exit (range 6) 7342 | -5/Factory | Entered Upper Caves 7722 | -5/Upper Caves | Attacked by a delusional Derelict stockpiling parts 7731 | -5/Upper Caves | Core integrity fell below 50% 7759 | -5/Upper Caves | Lost 3 parts (1p1n1u) 7823 | -5/Upper Caves | Discovered new exit (range 15) 7848 | -5/Upper Caves | Learned location of 2 exits from Factory 7889 | -5/Upper Caves | Entered another Upper Caves area 8073 | -5/Upper Caves | System corruption reached 30% 8287 | -5/Upper Caves | Discovered new exit (range 15) 8319 | -5/Upper Caves | Entered Warlord 8376 | -5/Warlord | System corruption cleaned by Quarantine Array 8380 | -5/Warlord | RIF detected upon attempting to enter Warlord's base 8380 | -5/Warlord | Attacked by Warlord forces 8409 | -5/Warlord | Discovered new exit (range 15) 8427 | -5/Warlord | Entered Proximity Caves 8495 | -4/Proximity Caves | Attracted the attention of an 0b10 outpost 8509 | -4/Proximity Caves | Released all parts (2) 8539 | -4/Proximity Caves | Lost 6 parts (1p2n3w) 8551 | -4/Proximity Caves | Attracted the attention of an 0b10 checkpoint 8559 | -4/Proximity Caves | Core integrity fell below 20% 8582 | -4/Proximity Caves | Destroyed by S-27 Virus with Autogun Last Messages --------------- 08537_ Found Mak. Hammer. 08537_ Found Dispersion Rifle. 08537_ Found 38 Matter. 08539_ Acquired Dispersion Rifle. 08543_ Searching scrap... 08543_ Found Mak. Core Shielding. 08543_ Found Adv. Field Recycling Unit. 08543_ Found 43 Matter. 08551_ Y-64 Sentinel: "INTERCEPTING UNREGISTERED DERELICT." 08551_ Penetrated by Slug. 08556_ Searching scrap... 08556_ Found Hvy. Phase Cannon. 08556_ Found Plasma Rifle. 08556_ Found 38 Matter. 08577_ Penetrated by Slug. 08577_ Slug penetrates Wall. 08580_ Penetrated by Slug. 08580_ Slug penetrates Abandoned Machinery. 08582_ C-30 ARC bursts open, deploying its payload. 08582_ S-27 Virus unfolds itself. Map ----- +----------------------------------------------------+ | ?????????????????????????????????????????????????? | | ????????????###??????????????????????????????????? | | ???????????## ####??????????????????????????????? | | ??????????## ##?##??????????????????????????? | | ?????? ??? ## ?????????????????????????? | | ??????# ??? ??????########??????????? | | ??????# ##?# ??????## #??????????? | | ??????# ## ???????# #??????????? | | ??????# ????????# #???????????? | | ??????## ?????????# #????????????? | | ?????## ??????????# #?????????????? | | ????## #?????????## ##????????????? | | ????# ########### #????????????? | | ????# #??????????? | | ????# " !% ##?????? | | ????????##### / " ! "" #### | | #??####????## % """ """" | | ### ###### """""" " | | # # """""" ## ### | | # ## " ## #??? | | ### ### """"" " ## #### ## | | ##?## ### """""" #???? | | ##???## " """""" g ###### #?????? | | ##?????# " """" #?????????????? | | ##??????# """" " Y #?????????????? | | #???????# """@ #?????????????? | | #???????## #?????????????? | | #?#####??### s s%[ #?????????????? | | ### #????## ## #;####sss##?????????????? | | #?????# ##### ### %##?????????????? | | ##?????# #???# ## ##????????????? | | ### ###??##### ##?## ## #????????????? | | ### #?#### ###C #????????????? | | "" ### ## #????????????? | | ## ### #????????????? | | " ## #### ## #?# ##????????????? | | "" ## #??# ###### ## #?????????????? | | "" ######??# ##???? #### $#?????????????? | | "" #???????#######????## #??? #?????????????? | | " #???????????????????#####??? #?????????????? | | #??????????????????????????? #?????????????? | | " #??????????????????????????? #?????????????? | | ? ???????????????????????????? ?????????????? | | ?? ???????????????????????????? ?????????????? | | ??###???????????????????????????? #?????????????? | | ?????????????????????????????????? #?????????????? | | ?????????????????????????????????? ??????????????? | | ?????????????????????????????????????????????????? | | ?????????????????????????????????????????????????? | | ?????????????????????????????????????????????????? | +----------------------------------------------------+ Best States ------------- Heat Dissipation 71 Energy Generation 33 Energy Capacity 530 Matter Stores 300 Matter Capacity 300 Sight Range 16 Robot Scan Range 14 Terrain Scan Range 16 Terrain Scan Density 210 Base Temperature (-) 200 Armor Coverage 150 Evasion (%) 55 Recoil Reduction 6 Energy Filtering 30 Relay Coupler Types 1 Relay Coupler Value 29 Item Schematics ----------------- None Robot Schematics ------------------ None Fabricated ------------ Adv. Cryofiber Web | x2 | -6/Factory | Preloaded Cmb. Antigrav System | x2 | -5/Factory | Preloaded Alien Tech Used ----------------- None Achievements -------------- Assimilation Complete Hehehe Challenges ------------ None Game ------ Seed SpliceWeightLink Manual? 0 Play Time 01:16:22 Cumulative 237.4 hours Start 2024.12.14 @ 06:51:24 End 2024.12.21 @ 18:14:26 Sessions 5 Manual Loads 0 Difficulty Rogue Special Mode None Game No. 190 Rogue 190 Adventurer 0 Explorer 0 Win Type - Total 1 Types 1/0/0/0/0/0/0/0/0 Lore% 51 Gallery% 62 Achievement% 44 Wizard Run 0 Options --------- Layout 0 ASCII 0 Keyboard 1 Movement Numpad Keybinds 0 Fullscreen 1 Font 12/Terminus Map View 83x54 Zoom Use 0% Tactical HUD 1 Map Filters NONE Filters NONE Steam 1 RUN: 1a5d0a09-d2c0-43f6-9d68-d5015c0f1ed0